fUSD/lending_fUSD_20241127
["ID","MTS","AMOUNT","RATE_DAILY","PERIOD"]
[343609935,1732746641293,-500.0,9.888e-05,2]
[343609936,1732746641302,-500.0,9.888e-05,2]
[343609937,1732746641311,-500.0,9.888e-05,2]
[343609938,1732746641320,-500.0,9.888e-05,2]
[343609939,1732746641330,-500.0,9.888e-05,2]
[343609940,1732746641340,-500.0,9.888e-05,2]
[343609941,1732746641350,-500.0,9.888e-05,2]
[343609942,1732746641359,-500.0,9.888e-05,2]
[343609943,1732746641368,-238.89,9.888e-05,2]
[343609944,1732746641377,-500.0,9.888e-05,2]
[343609945,1732746641387,-642.07,9.888e-05,2]
[343609946,1732746641396,-500.0,9.888e-05,2]
[343609947,1732746641406,-500.0,9.888e-05,2]
[343609948,1732746641415,-500.0,9.888e-05,2]
[343609949,1732746641425,-505.07278879,9.888e-05,2]
[343609950,1732746641434,-500.0,9.888e-05,2]
[343609951,1732746641444,-500.0,9.888e-05,2]
[343609952,1732746641453,-500.0,9.888e-05,2]
[343609953,1732746641463,-376.9,9.888e-05,2]
[343609954,1732746641472,-500.0,9.888e-05,2]
[343609955,1732746641482,-625.37,9.888e-05,2]
[343609956,1732746641493,-500.0,9.888e-05,2]
[343609957,1732746641504,-500.0,9.888e-05,2]
[343609958,1732746641514,-500.0,9.888e-05,2]
[343609959,1732746641524,-500.0,9.888e-05,2]
[343609960,1732746641534,-500.0,9.888e-05,2]
[343609961,1732746641543,-500.0,9.888e-05,2]
[343609962,1732746641553,-182.85,9.888e-05,2]
[343609963,1732746641563,-500.0,9.888e-05,2]
[343609964,1732746641573,-500.0,9.888e-05,2]
[343609965,1732746641582,-625.14,9.888e-05,2]
[343609966,1732746641591,-500.0,9.888e-05,2]
[343609967,1732746641600,-648.22,9.888e-05,2]
[343609968,1732746641610,-406.68,9.888e-05,2]
[343609969,1732746641620,-529.2,9.888e-05,2]
[343609970,1732746641629,-500.0,9.888e-05,2]
[343609971,1732746641639,-500.0,9.888e-05,2]
[343609972,1732746641648,-500.0,9.888e-05,2]
[343609973,1732746641658,-500.0,9.888e-05,2]
[343609974,1732746641668,-500.0,9.888e-05,2]
[343609975,1732746641677,-500.0,9.888e-05,2]
[343609976,1732746641686,-500.0,9.888e-05,2]
[343609977,1732746641695,-500.0,9.888e-05,2]
[343609978,1732746641705,-500.0,9.888e-05,2]
[343609979,1732746641714,-476.38,9.888e-05,2]
[343609980,1732746641724,-515.65,9.888e-05,2]
[343609981,1732746641735,-606.27,9.888e-05,2]
[343609982,1732746641746,-729.16,9.888e-05,2]
[343609983,1732746641756,-729.16,9.888e-05,2]
[343609984,1732746641766,-515.65,9.888e-05,2]
[343609985,1732746641776,-515.65,9.888e-05,2]
[343609986,1732746641785,-729.16,9.888e-05,2]
[343609987,1732746641794,-515.65,9.888e-05,2]
[343609988,1732746641804,-500.0,9.888e-05,2]
[343609989,1732746641814,-500.0,9.888e-05,2]
[343609990,1732746641824,-500.0,9.888e-05,2]
[343609991,1732746641833,-500.0,9.888e-05,2]
[343609992,1732746641842,-500.0,9.888e-05,2]
[343609993,1732746641852,-500.0,9.888e-05,2]
[343609994,1732746641862,-500.0,9.888e-05,2]
[343609995,1732746641871,-500.0,9.888e-05,2]
[343609996,1732746641881,-610.7,9.888e-05,2]
[343609997,1732746641891,-500.0,9.888e-05,2]
[343609998,1732746641900,-500.0,9.888e-05,2]
[343609999,1732746641910,-500.0,9.888e-05,2]
[343610000,1732746641920,-500.0,9.888e-05,2]
[343610001,1732746641930,-500.0,9.888e-05,2]
[343610002,1732746641939,-1650.88,9.888e-05,2]
[343610003,1732746641948,-1650.88,9.888e-05,2]
[343610004,1732746641958,-1650.88,9.888e-05,2]
[343610005,1732746641970,-1650.88,9.888e-05,2]
[343610006,1732746641980,-500.0,9.888e-05,2]
[343610007,1732746641990,-152.57,9.888e-05,2]
[343610008,1732746642000,-500.0,9.888e-05,2]
[343610009,1732746642011,-500.0,9.888e-05,2]
[343610010,1732746642020,-500.0,9.888e-05,2]
[343610011,1732746642030,-500.0,9.888e-05,2]
[343610012,1732746642042,-500.0,9.888e-05,2]
[343610013,1732746642051,-500.0,9.888e-05,2]
[343610014,1732746642060,-500.0,9.888e-05,2]
[343610015,1732746642070,-500.0,9.888e-05,2]
[343610016,1732746642079,-500.0,9.888e-05,2]
[343610017,1732746642088,-500.0,9.888e-05,2]
[343610018,1732746642098,-500.0,9.888e-05,2]
[343610019,1732746642107,-500.0,9.888e-05,2]
[343610020,1732746642117,-500.0,9.888e-05,2]
[343610021,1732746642128,-500.0,9.888e-05,2]
[343610022,1732746642137,-500.0,9.888e-05,2]
[343610023,1732746642147,-500.0,9.888e-05,2]
[343610024,1732746642157,-3764.47,9.888e-05,2]
[343610025,1732746642166,-3764.47,9.888e-05,2]
[343610026,1732746642175,-3764.47,9.888e-05,2]
[343610027,1732746642185,-3764.47,9.888e-05,2]
[343610028,1732746642194,-419.79,9.888e-05,2]
[343610029,1732746642203,-500.0,9.888e-05,2]
[343610030,1732746642213,-500.0,9.888e-05,2]
[343610031,1732746642222,-500.0,9.888e-05,2]
[343610032,1732746642232,-500.0,9.888e-05,2]
[343610033,1732746642243,-500.0,9.888e-05,2]
[343610034,1732746642252,-500.0,9.888e-05,2]
[343610035,1732746642262,-500.0,9.888e-05,2]
[343610036,1732746642271,-500.0,9.888e-05,2]
[343610037,1732746642280,-500.0,9.888e-05,2]
[343610038,1732746642290,-500.0,9.888e-05,2]
[343610039,1732746642299,-500.0,9.888e-05,2]
[343610040,1732746642309,-500.0,9.888e-05,2]
[343610041,1732746642318,-500.0,9.888e-05,2]
[343610042,1732746642328,-500.0,9.888e-05,2]
[343610043,1732746642338,-500.0,9.888e-05,2]
[343610045,1732746642347,-500.0,9.888e-05,2]
[343610047,1732746642356,-500.0,9.888e-05,2]
[343610049,1732746642366,-500.0,9.888e-05,2]
[343610051,1732746642376,-500.0,9.888e-05,2]
[343610055,1732746642385,-500.0,9.888e-05,2]
[343610057,1732746642395,-500.0,9.888e-05,2]
[343610058,1732746642405,-500.0,9.888e-05,2]
[343610059,1732746642414,-500.0,9.888e-05,2]
[343610060,1732746642423,-696.5,9.888e-05,2]
[343610061,1732746642432,-419.6,9.888e-05,2]
[343610062,1732746642441,-696.5,9.888e-05,2]
[343610064,1732746642450,-696.5,9.888e-05,2]
[343610066,1732746642460,-500.0,9.888e-05,2]
[343610068,1732746642470,-500.0,9.888e-05,2]
[343610070,1732746642479,-500.0,9.888e-05,2]
[343610071,1732746642488,-47384.02119665,9.889e-05,2]
[343610072,1732746642773,-4711.96515424,9.889e-05,2]
[343610073,1732746642785,-1920.30422645,9.889e-05,2]
[343610074,1732746642796,-342.108,9.889e-05,2]
[343610075,1732746642807,-941.84,9.889e-05,2]
[343610076,1732746642838,-2346.05383172,9.889e-05,2]
[343610077,1732746642865,-2900.0749978,9.889e-05,2]
[343610078,1732746642875,-2771.54420236,9.889e-05,2]
[343610090,1732746643080,-500.0,9.888e-05,2]
[343610091,1732746643090,-95949.00000002,9.889e-05,2]
[343610094,1732746643104,-727.57954179,9.889e-05,2]
[343610220,1732746645427,-1477.5862,9.889e-05,2]
[343610233,1732746645543,-981.88664,9.889e-05,2]
[343610235,1732746645554,-3217.3189,9.889e-05,2]
[343610236,1732746645665,-3592.9018465,9.889e-05,2]
[343610237,1732746645676,-28974.80782568,9.889e-05,2]
[343610238,1732746645699,-11918.49462269,9.889e-05,2]
[343610305,1732747831647,-1203.21909365,8.219e-05,2]
[343610306,1732747831658,-654.68090635,8.219e-05,2]
[343610307,1732747831667,-2288.1,8.219e-05,2]
[343610308,1732747831677,-337.72087661,8.219e-05,2]
[343610309,1732747831686,-300.0,8.312e-05,2]
[343610310,1732747831695,-23900.0,8.313e-05,2]
[343610311,1732747831704,-1000.0,8.344e-05,2]
[343610312,1732747831713,-250.0,8.373e-05,2]
[343610313,1732747831722,-250.0,8.46e-05,2]
[343610314,1732747831732,-200.0,8.533e-05,2]
[343610315,1732747831741,-250.0,8.579e-05,2]
[343610316,1732747831750,-701.29,8.579e-05,2]
[343610317,1732747831760,-1642.42,8.59e-05,2]
[343610318,1732747831769,-5223.0,8.675e-05,2]
[343610319,1732747831778,-150.0,8.712e-05,2]
[343610320,1732747831787,-155.09,8.75e-05,2]
[343610321,1732747831797,-1404.773,8.82e-05,2]
[343610322,1732747831806,-174.877,8.82e-05,2]
[343610323,1732747831815,-334.15,8.82e-05,2]
[343610324,1732747831824,-169.81,8.835e-05,2]
[343610325,1732747831834,-3470.9116897,8.906e-05,2]
[343610326,1732747831860,-6170.7883103,8.906e-05,2]
[343610327,1732747831869,-336.16461393,8.932e-05,2]
[343610328,1732747831878,-164.87,8.993e-05,2]
[343610329,1732747831887,-150.0,9e-05,2]
[343610330,1732747831897,-420.0,9.143e-05,2]
[343610331,1732747831906,-1000.0,9.388e-05,2]
[343610332,1732747831916,-185.90281863,9.534e-05,2]
[343610333,1732747831928,-314.09718137,9.534e-05,2]
[343610334,1732747831937,-400.0,9.589e-05,2]
[343610335,1732747831946,-1000.0,9.6e-05,2]
[343610336,1732747831955,-150.0,9.669e-05,2]
[343610337,1732747831965,-150.99,9.67e-05,2]
[343610338,1732747831974,-299.99,9.67e-05,2]
[343610339,1732747831983,-64012.0216,9.689e-05,2]
[343610340,1732747831992,-1000.0,9.689e-05,2]
[343610341,1732747832001,-877.2593,9.689e-05,2]
[343610342,1732747832012,-2500.0,9.689e-05,2]
[343610343,1732747832021,-1000.0,9.7e-05,2]
[343610344,1732747832031,-150.0,9.727e-05,2]
[343610345,1732747832040,-150.0,9.732e-05,2]
[343610346,1732747832050,-150.0,9.746e-05,2]
[343610348,1732747832059,-150.0,9.748e-05,2]
[343610350,1732747832068,-1788.7568,9.789e-05,2]
[343610352,1732747832077,-208614.62003988,9.789e-05,2]
[343610356,1732747832103,-1674.57943545,9.789e-05,2]
[343610358,1732747832115,-2134.254951,9.789e-05,2]
[343610360,1732747832126,-41809.11302709,9.789e-05,2]
[343610365,1732747832161,-939.13181154,9.789e-05,2]
[343610549,1732747837626,-2914.45038811,9.789e-05,2]
[343610550,1732747837638,-466.43,9.789e-05,2]
[343610551,1732747837819,-1463.86,9.789e-05,2]
[343610552,1732747837893,-19303.77975703,9.789e-05,2]
[343610553,1732747837905,-2959.32428515,9.789e-05,2]
[343610554,1732747837916,-13486.31330831,9.789e-05,2]
[343610555,1732747838095,-4614.775,9.789e-05,2]
[343610698,1732747839631,-208833.19609644,9.789e-05,2]
[343610700,1732747839642,-949.233,9.789e-05,2]
[343610702,1732747839651,-30992.2319,9.789e-05,2]
[343610704,1732747839660,-500.0,9.789e-05,2]
[343610707,1732747839670,-248.003391,9.8e-05,2]
[343610709,1732747839680,-1353.0,9.8e-05,2]
[343610711,1732747839689,-150.0,9.816e-05,2]
[343610713,1732747839698,-150.0,9.824e-05,2]
[343610715,1732747839708,-150.0,9.83e-05,2]
[343610717,1732747839717,-150.0,9.842e-05,2]
[343610719,1732747839726,-150.0,9.854e-05,2]
[343610721,1732747839736,-500.0,9.863e-05,2]
[343610723,1732747839745,-487.72,9.863e-05,2]
[343610725,1732747839754,-500.0,9.863e-05,2]
[343610726,1732747839764,-500.0,9.863e-05,2]
[343610728,1732747839774,-500.0,9.863e-05,2]
[343610730,1732747839783,-500.0,9.863e-05,2]
[343610732,1732747839792,-500.0,9.863e-05,2]
[343610734,1732747839802,-500.0,9.863e-05,2]
[343610736,1732747839811,-500.0,9.863e-05,2]
[343610738,1732747839820,-500.0,9.863e-05,2]
[343610740,1732747839829,-500.0,9.863e-05,2]
[343610742,1732747839839,-500.0,9.863e-05,2]
[343610744,1732747839848,-314.18,9.863e-05,2]
[343610746,1732747839857,-500.0,9.863e-05,2]
[343610748,1732747839867,-500.0,9.863e-05,2]
[343610750,1732747839876,-500.0,9.863e-05,2]
[343610752,1732747839886,-700.27,9.863e-05,2]
[343610754,1732747839895,-500.0,9.863e-05,2]
[343610756,1732747839905,-700.27,9.863e-05,2]
[343610758,1732747839915,-388.7250623,9.863e-05,2]
[343610760,1732747839925,-500.0,9.863e-05,2]
[343610762,1732747839935,-513.49175984,9.863e-05,2]
[343610764,1732747839944,-481.71,9.863e-05,2]
[343610766,1732747839954,-500.0,9.863e-05,2]
[343610768,1732747839963,-500.0,9.863e-05,2]
[343610770,1732747839972,-500.0,9.863e-05,2]
[343610772,1732747839982,-500.0,9.863e-05,2]
[343610774,1732747839991,-549.28,9.863e-05,2]
[343610776,1732747840001,-549.28,9.863e-05,2]
[343610778,1732747840011,-500.0,9.863e-05,2]
[343610779,1732747840022,-500.0,9.863e-05,2]
[343610781,1732747840031,-500.0,9.863e-05,2]
[343610783,1732747840041,-500.0,9.863e-05,2]
[343610785,1732747840050,-500.0,9.863e-05,2]
[343610787,1732747840060,-564.82,9.863e-05,2]
[343610789,1732747840069,-574.56,9.863e-05,2]
[343610791,1732747840079,-500.0,9.863e-05,2]
[343610793,1732747840089,-500.0,9.863e-05,2]
[343610795,1732747840098,-500.0,9.863e-05,2]
[343610797,1732747840107,-500.0,9.863e-05,2]
[343610799,1732747840117,-500.0,9.863e-05,2]
[343610801,1732747840126,-500.0,9.863e-05,2]
[343610803,1732747840135,-500.0,9.863e-05,2]
[343610805,1732747840144,-409.75,9.863e-05,2]
[343610807,1732747840154,-500.0,9.863e-05,2]
[343610809,1732747840163,-500.0,9.863e-05,2]
[343610811,1732747840173,-500.0,9.863e-05,2]
[343610813,1732747840182,-500.0,9.863e-05,2]
[343610815,1732747840192,-500.0,9.863e-05,2]
[343610817,1732747840201,-500.0,9.863e-05,2]
[343610819,1732747840210,-500.0,9.863e-05,2]
[343610821,1732747840219,-500.0,9.863e-05,2]
[343610823,1732747840228,-474.9981,9.863e-05,2]
[343610825,1732747840237,-566.69,9.863e-05,2]
[343610827,1732747840246,-500.0,9.863e-05,2]
[343610828,1732747840256,-500.0,9.863e-05,2]
[343610830,1732747840265,-500.0,9.863e-05,2]
[343610832,1732747840281,-500.0,9.863e-05,2]
[343610834,1732747840292,-500.0,9.863e-05,2]
[343610836,1732747840301,-500.0,9.863e-05,2]
[343610838,1732747840313,-500.0,9.863e-05,2]
[343610840,1732747840322,-500.0,9.863e-05,2]
[343610842,1732747840332,-444.31,9.863e-05,2]
[343610844,1732747840341,-500.0,9.863e-05,2]
[343610846,1732747840352,-500.0,9.863e-05,2]
[343610848,1732747840362,-500.0,9.863e-05,2]
[343610850,1732747840371,-500.0,9.863e-05,2]
[343610852,1732747840380,-500.0,9.863e-05,2]
[343610854,1732747840389,-500.0,9.863e-05,2]
[343610856,1732747840398,-500.0,9.863e-05,2]
[343610858,1732747840407,-500.0,9.863e-05,2]
[343610860,1732747840416,-500.0,9.863e-05,2]
[343610862,1732747840425,-500.0,9.863e-05,2]
[343610864,1732747840434,-500.0,9.863e-05,2]
[343610866,1732747840445,-500.0,9.863e-05,2]
[343610868,1732747840459,-279.17,9.863e-05,2]
[343610870,1732747840469,-500.0,9.863e-05,2]
[343610871,1732747840480,-500.0,9.863e-05,2]
[343610873,1732747840489,-500.0,9.863e-05,2]
[343610875,1732747840498,-373.56,9.863e-05,2]
[343610877,1732747840506,-500.0,9.863e-05,2]
[343610879,1732747840518,-500.0,9.863e-05,2]
[343610881,1732747840528,-500.0,9.863e-05,2]
[343610883,1732747840538,-500.0,9.863e-05,2]
[343610885,1732747840547,-500.0,9.863e-05,2]
[343610887,1732747840556,-607.64,9.863e-05,2]
[343610889,1732747840565,-607.64,9.863e-05,2]
[343610891,1732747840574,-500.0,9.863e-05,2]
[343610893,1732747840583,-500.0,9.863e-05,2]
[343610895,1732747840592,-500.0,9.863e-05,2]
[343610897,1732747840602,-500.0,9.863e-05,2]
[343610899,1732747840611,-500.0,9.863e-05,2]
[343610901,1732747840621,-500.0,9.863e-05,2]
[343610903,1732747840631,-500.0,9.863e-05,2]
[343610905,1732747840641,-500.0,9.863e-05,2]
[343610907,1732747840650,-500.0,9.863e-05,2]
[343610909,1732747840659,-700.34,9.863e-05,2]
[343610910,1732747840669,-700.34,9.863e-05,2]
[343610912,1732747840680,-700.34,9.863e-05,2]
[343610914,1732747840689,-500.0,9.863e-05,2]
[343610916,1732747840699,-500.0,9.863e-05,2]
[343610918,1732747840708,-500.0,9.863e-05,2]
[343610920,1732747840718,-500.0,9.863e-05,2]
[343610922,1732747840728,-500.0,9.863e-05,2]
[343610923,1732747840737,-500.0,9.863e-05,2]
[343610924,1732747840747,-500.0,9.863e-05,2]
[343610925,1732747840756,-598.71,9.863e-05,2]
[343610926,1732747840765,-608.18983006,9.863e-05,2]
[343610927,1732747840775,-500.0,9.863e-05,2]
[343610928,1732747840785,-566.42,9.863e-05,2]
[343610929,1732747840796,-500.0,9.863e-05,2]
[343610930,1732747840805,-500.0,9.863e-05,2]
[343610931,1732747840815,-500.0,9.863e-05,2]
[343610932,1732747840824,-500.0,9.863e-05,2]
[343610933,1732747840834,-580.42,9.863e-05,2]
[343610934,1732747840843,-580.42,9.863e-05,2]
[343610935,1732747840852,-500.0,9.863e-05,2]
[343610936,1732747840862,-500.0,9.863e-05,2]
[343610937,1732747840871,-500.0,9.863e-05,2]
[343610938,1732747840880,-500.0,9.863e-05,2]
[343610939,1732747840889,-500.0,9.863e-05,2]
[343610940,1732747840899,-542.34,9.863e-05,2]
[343610941,1732747840907,-500.0,9.863e-05,2]
[343610942,1732747840917,-571.32,9.863e-05,2]
[343610943,1732747840926,-500.0,9.863e-05,2]
[343610944,1732747840935,-500.0,9.863e-05,2]
[343610945,1732747840945,-500.0,9.863e-05,2]
[343610946,1732747840954,-500.0,9.863e-05,2]
[343610948,1732747840963,-500.0,9.863e-05,2]
[343610950,1732747840973,-500.0,9.863e-05,2]
[343610952,1732747840983,-500.0,9.863e-05,2]
[343610954,1732747840993,-500.0,9.863e-05,2]
[343610956,1732747841003,-500.0,9.863e-05,2]
[343610958,1732747841012,-500.0,9.863e-05,2]
[343610960,1732747841023,-500.0,9.863e-05,2]
[343610962,1732747841033,-500.0,9.863e-05,2]
[343610964,1732747841043,-500.0,9.863e-05,2]
[343610966,1732747841052,-500.0,9.863e-05,2]
[343610968,1732747841061,-500.0,9.863e-05,2]
[343610970,1732747841071,-500.0,9.863e-05,2]
[343610972,1732747841080,-500.0,9.863e-05,2]
[343610974,1732747841089,-500.0,9.863e-05,2]
[343610976,1732747841099,-1306.94,9.863e-05,2]
[343610978,1732747841108,-1306.94,9.863e-05,2]
[343610980,1732747841117,-1306.94,9.863e-05,2]
[343610982,1732747841126,-500.0,9.863e-05,2]
[343610984,1732747841135,-500.0,9.863e-05,2]
[343610985,1732747841144,-500.0,9.863e-05,2]
[343610987,1732747841154,-500.0,9.863e-05,2]
[343610989,1732747841163,-2980.2,9.863e-05,2]
[343610991,1732747841172,-2980.2,9.863e-05,2]
[343610993,1732747841181,-2980.2,9.863e-05,2]
[343610995,1732747841190,-500.0,9.863e-05,2]
[343610997,1732747841199,-500.0,9.863e-05,2]
[343610999,1732747841212,-500.0,9.863e-05,2]
[343611001,1732747841221,-500.0,9.863e-05,2]
[343611003,1732747841230,-500.0,9.863e-05,2]
[343611005,1732747841239,-500.0,9.863e-05,2]
[343611007,1732747841248,-460.47,9.863e-05,2]
[343611009,1732747841258,-500.0,9.863e-05,2]
[343611011,1732747841269,-500.0,9.863e-05,2]
[343611013,1732747841278,-500.0,9.863e-05,2]
[343611015,1732747841291,-500.0,9.863e-05,2]
[343611017,1732747841300,-500.0,9.863e-05,2]
[343611019,1732747841314,-500.0,9.863e-05,2]
[343611021,1732747841324,-433.02,9.863e-05,2]
[343611023,1732747841333,-159.46506454,9.863e-05,2]
[343611025,1732747841343,-2383.25,9.863e-05,2]
[343611027,1732747841353,-2383.25,9.863e-05,2]
[343611029,1732747841362,-500.0,9.863e-05,2]
[343611031,1732747841371,-431.85,9.863e-05,2]
[343611033,1732747841381,-500.0,9.863e-05,2]
[343611035,1732747841390,-224.88,9.863e-05,2]
[343611037,1732747841400,-561.58,9.863e-05,2]
[343611039,1732747841409,-500.0,9.863e-05,2]
[343611041,1732747841419,-1457.0,9.88e-05,2]
[343611043,1732747841428,-500.0,9.886e-05,2]
[343611045,1732747841437,-500.0,9.886e-05,2]
[343611047,1732747841446,-500.0,9.886e-05,2]
[343611049,1732747841456,-500.0,9.886e-05,2]
[343611051,1732747841467,-500.0,9.886e-05,2]
[343611053,1732747841476,-500.0,9.886e-05,2]
[343611055,1732747841486,-500.0,9.886e-05,2]
[343611057,1732747841495,-700.27,9.886e-05,2]
[343611058,1732747841504,-264.19707883,9.886e-05,2]
[343611060,1732747841513,-500.0,9.886e-05,2]
[343611062,1732747841527,-549.28,9.886e-05,2]
[343611065,1732747841536,-500.0,9.886e-05,2]
[343611067,1732747841547,-500.0,9.886e-05,2]
[343611069,1732747841556,-500.0,9.886e-05,2]
[343611071,1732747841565,-500.0,9.886e-05,2]
[343611073,1732747841574,-500.0,9.886e-05,2]
[343611075,1732747841583,-500.0,9.886e-05,2]
[343611077,1732747841594,-500.0,9.886e-05,2]
[343611078,1732747841603,-500.0,9.886e-05,2]
[343611080,1732747841612,-401.41000001,9.886e-05,2]
[343611082,1732747841622,-500.0,9.886e-05,2]
[343611084,1732747841631,-500.0,9.886e-05,2]
[343611086,1732747841639,-500.0,9.886e-05,2]
[343611088,1732747841648,-500.0,9.886e-05,2]
[343611090,1732747841657,-500.0,9.886e-05,2]
[343611092,1732747841666,-500.0,9.886e-05,2]
[343611094,1732747841675,-500.0,9.886e-05,2]
[343611096,1732747841685,-500.0,9.886e-05,2]
[343611098,1732747841694,-607.64,9.886e-05,2]
[343611100,1732747841703,-500.0,9.886e-05,2]
[343611102,1732747841713,-500.0,9.886e-05,2]
[343611104,1732747841722,-207.88,9.886e-05,2]
[343611106,1732747841731,-500.0,9.886e-05,2]
[343611108,1732747841740,-500.0,9.886e-05,2]
[343611110,1732747841750,-500.0,9.886e-05,2]
[343611112,1732747841759,-580.42,9.886e-05,2]
[343611114,1732747841771,-334.93961699,9.886e-05,2]
[343611116,1732747841786,-165.06038301,9.886e-05,2]
[343611118,1732747841795,-500.0,9.886e-05,2]
[343611120,1732747841805,-381.33761559,9.886e-05,2]
[343611122,1732747841817,-118.66238441,9.886e-05,2]
[343611124,1732747841826,-500.0,9.886e-05,2]
[343611126,1732747841837,-500.0,9.886e-05,2]
[343611129,1732747841847,-500.0,9.886e-05,2]
[343611131,1732747841857,-251.29761559,9.886e-05,2]
[343611133,1732747841872,-248.70238441,9.886e-05,2]
[343611135,1732747841882,-500.0,9.886e-05,2]
[343611137,1732747841891,-500.0,9.886e-05,2]
[343611139,1732747841901,-2383.25,9.886e-05,2]
[343611141,1732747841911,-500.0,9.887e-05,2]
[343611143,1732747841920,-534.68809815,9.887e-05,2]
[343611145,1732747841929,-500.0,9.887e-05,2]
[343611147,1732747841938,-500.0,9.887e-05,2]
[343611149,1732747841947,-500.0,9.887e-05,2]
[343611151,1732747841957,-500.0,9.887e-05,2]
[343611153,1732747841966,-500.0,9.887e-05,2]
[343611155,1732747841975,-500.0,9.887e-05,2]
[343611157,1732747841985,-500.0,9.887e-05,2]
[343611159,1732747841994,-500.0,9.887e-05,2]
[343611161,1732747842003,-500.0,9.887e-05,2]
[343611163,1732747842012,-500.0,9.887e-05,2]
[343611165,1732747842023,-180.56966555,9.887e-05,2]
[343611167,1732747842032,-500.0,9.887e-05,2]
[343611169,1732747842042,-500.0,9.887e-05,2]
[343611171,1732747842051,-500.0,9.887e-05,2]
[343611173,1732747842061,-500.0,9.887e-05,2]
[343611175,1732747842072,-500.0,9.887e-05,2]
[343611177,1732747842082,-500.0,9.887e-05,2]
[343611179,1732747842091,-500.0,9.887e-05,2]
[343611181,1732747842101,-500.0,9.887e-05,2]
[343611183,1732747842110,-500.0,9.887e-05,2]
[343611185,1732747842120,-500.0,9.887e-05,2]
[343611187,1732747842130,-500.0,9.887e-05,2]
[343611189,1732747842139,-500.0,9.887e-05,2]
[343611191,1732747842148,-500.0,9.887e-05,2]
[343611192,1732747842157,-403.17124462,9.887e-05,2]
[343611195,1732747842173,-105.62875538,9.887e-05,2]
[343611197,1732747842182,-271.07198462,9.887e-05,2]
[343611199,1732747842194,-228.92801538,9.887e-05,2]
[343611201,1732747842203,-96.67487682,9.887e-05,2]
[343611405,1732747844317,-502.72,9.863e-05,2]
[343611407,1732747844327,-500.0,9.863e-05,2]
[343611409,1732747844337,-500.0,9.863e-05,2]
[343611411,1732747844346,-500.0,9.886e-05,2]
[343611413,1732747844355,-471.51512318,9.887e-05,2]
[343611415,1732747844365,-500.0,9.887e-05,2]
[343611417,1732747844374,-500.0,9.887e-05,2]
[343611419,1732747844384,-500.0,9.887e-05,2]
[343611421,1732747844392,-500.0,9.887e-05,2]
[343611423,1732747844402,-500.0,9.887e-05,2]
[343611425,1732747844411,-500.0,9.887e-05,2]
[343611426,1732747844420,-331.89423096,9.887e-05,2]
[343611428,1732747844430,-500.0,9.887e-05,2]
[343611431,1732747844439,-500.0,9.887e-05,2]
[343611433,1732747844449,-500.0,9.887e-05,2]
[343611435,1732747844459,-500.0,9.887e-05,2]
[343611436,1732747844469,-500.0,9.887e-05,2]
[343611438,1732747844479,-500.0,9.887e-05,2]
[343611440,1732747844488,-500.0,9.887e-05,2]
[343611442,1732747844497,-500.0,9.887e-05,2]
[343611444,1732747844507,-500.0,9.887e-05,2]
[343611446,1732747844516,-383.09,9.887e-05,2]
[343611449,1732747844528,-500.0,9.887e-05,2]
[343611451,1732747844538,-500.0,9.887e-05,2]
[343611452,1732747844547,-500.0,9.887e-05,2]
[343611455,1732747844557,-645.74,9.887e-05,2]
[343611456,1732747844566,-500.0,9.887e-05,2]
[343611458,1732747844576,-500.0,9.887e-05,2]
[343611460,1732747844585,-500.0,9.887e-05,2]
[343611462,1732747844595,-500.0,9.887e-05,2]
[343611464,1732747844604,-500.0,9.887e-05,2]
[343611466,1732747844614,-500.0,9.887e-05,2]
[343611468,1732747844625,-500.0,9.887e-05,2]
[343611470,1732747844634,-500.0,9.887e-05,2]
[343611472,1732747844644,-500.0,9.887e-05,2]
[343611474,1732747844653,-500.0,9.887e-05,2]